bitfinex/quotes_BTCUSD_20250303
["timestamp","ask_amount","ask_price","bid_price","bid_amount"]
[1740969512595,0.00187625,93278.0,93255.0,0.3]
[1740969512794,0.00187625,93278.0,93261.0,0.007]
[1740969513032,0.160837,93262.0,93261.0,0.007]
[1740969513202,0.30348831,93262.0,93244.0,0.000341]
[1740969513413,0.214455,93260.0,93244.0,0.000341]
[1740969513620,0.160856,93252.0,93244.0,0.000341]
[1740969513821,0.00187676,93251.0,93245.0,0.03376208]
[1740969514184,0.00187676,93261.0,93245.0,0.03376208]
[1740969514669,0.0831,93280.0,93259.0,0.214455]
[1740969514878,0.00187639,93279.0,93258.0,0.160842]
[1740969515178,0.160827,93268.0,93244.0,0.000341]
[1740969515440,0.160835,93264.0,93261.0,0.004]
[1740969515656,0.0018765,93277.0,93259.0,0.03408928]
[1740969515854,0.16082,93272.0,93245.0,0.00777079]
[1740969516130,0.00187653,93278.0,93260.0,1.5]
[1740969516352,0.00187639,93277.0,93260.0,1.53408978]
[1740969516535,0.160814,93276.0,93260.0,1.53408978]
[1740969516691,0.160838,93261.0,93260.0,1.53408978]
[1740969517779,0.160838,93261.0,93260.0,0.03408978]
[1740969517962,0.16271461,93261.0,93260.0,0.04108978]
[1740969518165,0.16271461,93261.0,93260.0,0.007]
[1740969518651,0.16271461,93261.0,93260.0,0.012]
[1740969518825,0.16271461,93261.0,93260.0,0.007]
[1740969519212,0.16271461,93261.0,93260.0,0.014]
[1740969519836,0.28561461,93261.0,93260.0,0.014]
[1740969520051,0.283738,93261.0,93260.0,0.014]
[1740969520540,0.38334521,93261.0,93260.0,0.014]
[1740969520734,0.38334521,93261.0,93260.0,0.007]
[1740969520945,0.283738,93261.0,93260.0,0.014]
[1740969521588,0.045,93261.0,93260.0,0.014]
[1740969521880,0.16270866,93265.0,93260.0,0.007]
[1740969522026,0.160833,93264.0,93260.0,0.03408978]
[1740969522231,0.00187666,93265.0,93260.0,0.007]
[1740969522439,0.00187666,93265.0,93264.0,0.160833]
[1740969522662,0.045,93276.0,93265.0,0.160831]
[1740969522872,0.045,93276.0,93264.0,0.03409179]
[1740969523090,0.214419,93275.0,93260.0,0.007]
[1740969523292,0.214419,93275.0,93265.0,0.0340923]
[1740969523497,0.160828,93267.0,93261.0,0.160838]
[1740969523701,0.160828,93267.0,93266.0,0.0340928]
[1740969523903,0.214432,93270.0,93265.0,0.005]
[1740969524297,0.160826,93268.0,93265.0,0.005]
[1740969524499,0.0018765,93269.0,93265.0,0.012]
[1740969524908,0.16269949,93270.0,93266.0,0.0340928]
[1740969525146,0.160823,93270.0,93266.0,0.0340928]
[1740969525306,0.214428,93272.0,93266.0,0.0340928]
[1740969525527,0.160825,93269.0,93266.0,0.0340928]
[1740969525842,0.16083,93266.0,93265.0,0.007]
[1740969526165,0.16270657,93266.0,93265.0,0.007]
[1740969527310,0.16084,93261.0,93248.0,1.714481]
[1740969527464,0.16271764,93260.0,93252.0,0.160853]
[1740969528049,0.00187664,93260.0,93248.0,1.5]
[1740969528310,0.001,93269.0,93248.0,1.5]
[1740969528514,0.001,93266.0,93265.0,0.007]
[1740969528649,0.00287663,93266.0,93265.0,0.007]
[1740969528861,0.160835,93264.0,93256.0,0.160846]
[1740969529081,0.160835,93264.0,93248.0,1.5]
[1740969529082,0.160842,93259.0,93252.0,0.007]
[1740969529293,0.00187664,93258.0,93252.0,0.007]
[1740969529489,0.160847,93256.0,93248.0,1.660861]
[1740969529695,0.160849,93255.0,93248.0,1.5]
[1740969529897,0.21446,93258.0,93248.0,1.5]
[1740969530198,0.00187664,93257.0,93252.0,0.007]
[1740969530415,0.00187664,93257.0,93252.0,0.014]
[1740969530577,0.160848,93256.0,93252.0,0.007]
[1740969530924,0.00187664,93255.0,93252.0,0.007]
[1740969531123,0.160848,93256.0,93252.0,0.007]
[1740969531357,0.00187664,93255.0,93252.0,0.007]
[1740969531581,0.00187664,93255.0,93252.0,0.014]
[1740969531843,0.16272464,93256.0,93252.0,0.007]
[1740969532066,0.16085,93255.0,93252.0,0.007]
[1740969532507,0.16085,93255.0,93252.0,0.014]
[1740969532736,0.001,93255.0,93252.0,0.014]
[1740969532963,0.160851,93254.0,93248.0,1.5]
[1740969533200,0.00187664,93256.0,93252.0,0.007]
[1740969533432,0.00187664,93256.0,93252.0,0.014]
[1740969533433,0.16272864,93253.0,93252.0,0.014]
[1740969533661,0.214474,93252.0,93244.0,0.000341]
[1740969533879,0.160866,93245.0,93244.0,0.000341]
[1740969534133,0.00187706,93249.0,93244.0,0.000341]
[1740969534387,0.00287677,93256.0,93244.0,0.000341]
[1740969534631,0.00287677,93256.0,93244.0,0.03442273]
[1740969534632,0.001,93256.0,93244.0,0.03442273]
[1740969534928,0.001,93256.0,93252.0,0.007]
[1740969535121,0.214466,93255.0,93252.0,0.007]
[1740969535241,0.16272565,93255.0,93252.0,0.007]
[1740969535448,0.160851,93254.0,93252.0,0.014]
[1740969535647,0.160852,93253.0,93252.0,0.007]
[1740969536155,0.00187665,93254.0,93244.0,0.000341]
[1740969536364,0.160863,93248.0,93244.0,0.007341]
[1740969536566,0.00187671,93247.0,93244.0,0.007341]
[1740969536767,0.001,93255.0,93252.0,0.007]
[1740969537171,0.001,93255.0,93252.0,0.014]
[1740969537827,0.160852,93253.0,93252.0,0.007]
[1740969538095,0.160852,93253.0,93252.0,0.014]
[1740969538506,0.16272877,93253.0,93252.0,0.007]
[1740969539206,0.00187677,93253.0,93244.0,0.000341]
[1740969539369,0.00287697,93253.0,93252.0,0.007]
[1740969539564,0.00187697,93253.0,93252.0,0.007]
[1740969539769,0.16272897,93253.0,93252.0,0.007]
[1740969539980,0.16372897,93253.0,93252.0,0.007]
[1740969540175,0.00287697,93253.0,93252.0,0.007]
[1740969540387,0.001,93253.0,93252.0,0.007]
[1740969540791,0.001,93253.0,93252.0,0.04108576]
[1740969541022,0.001,93253.0,93252.0,0.007]
[1740969541341,0.00187673,93268.0,93252.0,0.03408576]
[1740969541505,0.001,93253.0,93252.0,0.007]
[1740969541851,0.001,93253.0,93244.0,0.007341]
[1740969542038,0.002,93253.0,93252.0,0.04108576]
[1740969542234,0.002,93253.0,93252.0,0.007]
[1740969542654,0.16472871,93253.0,93252.0,0.007]
[1740969543124,0.16472871,93253.0,93252.0,0.014]
[1740969543327,0.00387671,93253.0,93252.0,0.014]
[1740969543526,0.002,93253.0,93252.0,0.04808576]
[1740969543910,0.002,93253.0,93252.0,0.175195]
[1740969544110,0.002,93253.0,93252.0,0.20928076]
[1740969544376,0.002,93253.0,93252.0,0.21033585]
[1740969545063,0.002,93253.0,93252.0,0.21033569]
[1740969545238,0.002,93253.0,93252.0,0.51033569]
[1740969545441,0.002,93253.0,93252.0,1.65690376]
[1740969545767,0.002,93253.0,93252.0,1.70369276]
[1740969545979,0.002,93253.0,93252.0,1.69669276]
[1740969546184,0.0001705,93269.0,93268.0,0.160826]
[1740969546387,0.0001704,93284.0,93268.0,1.90528402]
[1740969546558,0.0001704,93284.0,93283.0,0.460801]
[1740969546737,0.00029074,93284.0,93283.0,1.670862]
[1740969546940,0.00029074,93284.0,93283.0,3.20496335]
[1740969547138,0.00029074,93284.0,93283.0,2.72664235]
[1740969547367,0.00029074,93284.0,93283.0,2.76299135]
[1740969547918,0.00029074,93284.0,93283.0,2.29067435]
[1740969548454,0.00029074,93284.0,93283.0,2.30117791]
[1740969548839,0.00029074,93284.0,93283.0,2.30817791]
[1740969549043,0.00029074,93284.0,93283.0,2.31517791]
[1740969549290,0.00029074,93284.0,93283.0,2.28385491]
[1740969549496,0.00029074,93284.0,93283.0,2.25700591]
[1740969549797,0.00029074,93284.0,93283.0,2.02748497]
[1740969549967,0.00029074,93284.0,93283.0,0.05860491]
[1740969550146,0.00029074,93284.0,93283.0,0.21940591]
[1740969550793,0.00029074,93284.0,93283.0,0.21240591]
[1740969551197,0.00029074,93284.0,93283.0,0.20540591]
[1740969551449,0.00029074,93284.0,93283.0,0.58998191]
[1740969551648,0.00029074,93284.0,93283.0,0.35920591]
[1740969551861,0.00029074,93284.0,93283.0,0.21240591]
[1740969552157,0.00029074,93284.0,93283.0,0.21940591]
[1740969552297,0.00029074,93284.0,93283.0,0.21240591]
[1740969552498,0.00029074,93284.0,93283.0,0.66017891]
[1740969552703,0.00029074,93284.0,93283.0,0.32010591]
[1740969552901,0.00029074,93284.0,93283.0,0.32710591]
[1740969553172,0.00029074,93284.0,93283.0,0.21940591]
[1740969554262,0.00029074,93284.0,93283.0,0.22045981]
[1740969554627,0.00029074,93284.0,93283.0,0.92721381]
[1740969554901,0.00029074,93284.0,93283.0,1.18684291]
[1740969555463,0.00029074,93284.0,93283.0,1.29567993]
[1740969555664,0.00029074,93284.0,93283.0,1.37577993]
[1740969556066,0.0001704,93330.0,93309.0,0.460756]
[1740969556264,0.0001704,93330.0,93309.0,0.789522]
[1740969556487,0.0001704,93330.0,93309.0,0.69414441]
[1740969556806,0.0001704,93330.0,93309.0,0.66393941]
[1740969557339,0.0001704,93330.0,93309.0,0.65203941]
[1740969557671,0.0001704,93330.0,93309.0,2.15203941]
[1740969557900,0.0001704,93330.0,93309.0,1.99487041]
[1740969558178,0.0001704,93330.0,93309.0,4.34361941]
[1740969558511,0.0001704,93330.0,93309.0,3.73002041]
[1740969558713,0.0001704,93330.0,93309.0,3.73702041]
[1740969558939,0.0001704,93330.0,93309.0,2.95092341]
[1740969559141,0.0001704,93330.0,93309.0,2.28243241]
[1740969559421,0.0001704,93330.0,93309.0,2.00887041]
[1740969559639,0.214302,93326.0,93309.0,0.50887041]
[1740969559772,0.214311,93322.0,93309.0,0.50887041]
[1740969559971,0.0806,93329.0,93309.0,0.50887041]
[1740969560172,0.00187529,93328.0,93309.0,0.50887041]
[1740969560378,0.00187528,93320.0,93309.0,0.50887041]
[1740969560596,0.160739,93319.0,93309.0,0.50887041]
[1740969560827,0.00187531,93320.0,93309.0,0.50887041]
[1740969561068,0.16074,93319.0,93309.0,0.50887041]
[1740969561262,0.214318,93320.0,93309.0,0.50887041]
[1740969561442,0.16074,93319.0,93309.0,0.50887041]
[1740969561644,0.160742,93317.0,93309.0,0.50887041]
[1740969561796,0.15476,93321.0,93309.0,0.50887041]
[1740969562318,0.15476,93321.0,93309.0,1.51362641]
[1740969562507,0.15476,93321.0,93309.0,0.75484141]
[1740969563260,0.0001704,93338.0,93329.0,0.460721]
[1740969563442,0.0001704,93338.0,93329.0,0.807526]
[1740969563643,0.00057163,93330.0,93329.0,0.807526]
[1740969564003,0.00057163,93330.0,93329.0,0.84165046]
[1740969564389,0.00057163,93330.0,93329.0,0.69915546]
[1740969564707,0.00057163,93330.0,93329.0,0.90153975]
[1740969564907,0.00057163,93330.0,93329.0,0.90853975]
[1740969565115,0.00057163,93330.0,93329.0,0.90153975]
[1740969565506,0.00057163,93330.0,93329.0,0.89453975]
[1740969565806,0.00057163,93330.0,93329.0,0.79970273]
[1740969566252,0.00057163,93330.0,93329.0,2.40974548]
[1740969566678,0.00057163,93330.0,93329.0,2.30090846]
[1740969566882,0.00057163,93330.0,93329.0,2.22520846]
[1740969567085,0.00057163,93330.0,93329.0,2.23220846]
[1740969567263,0.00057163,93330.0,93329.0,2.22520846]
[1740969567644,0.00057163,93330.0,93329.0,2.23220846]
[1740969567836,0.00057163,93330.0,93329.0,2.22520846]
[1740969568183,0.00057163,93330.0,93329.0,2.23220846]
[1740969569948,0.00057163,93330.0,93329.0,2.34104548]
[1740969570985,0.00057163,93330.0,93329.0,2.23220846]
[1740969572672,0.00057163,93330.0,93329.0,2.24971728]
[1740969573663,0.00057163,93330.0,93329.0,2.04540728]
[1740969574088,0.00057163,93330.0,93329.0,1.73720155]
[1740969574479,0.00057163,93330.0,93329.0,1.56563328]
[1740969574685,0.16129163,93330.0,93329.0,1.56563328]
[1740969575081,0.16129163,93330.0,93329.0,0.05863328]
[1740969575335,0.16129163,93330.0,93329.0,0.007]
[1740969575512,0.2143,93328.0,93317.0,0.09615098]
[1740969575716,0.00057163,93330.0,93318.0,0.03517155]
[1740969575936,0.0451,93335.0,93318.0,0.03411893]
[1740969575937,0.160738,93319.0,93318.0,0.03411893]
[1740969576608,0.214316,93320.0,93304.0,1.5]
[1740969576867,0.16074,93318.0,93304.0,1.5]
[1740969577073,0.00187561,93317.0,93305.0,0.0341124]
[1740969577599,0.160756,93309.0,93305.0,0.0341124]
[1740969577796,0.160754,93310.0,93305.0,0.0341124]
[1740969577971,0.160755,93310.0,93305.0,0.0341124]
[1740969578150,0.160761,93306.0,93305.0,0.0341124]
[1740969578799,0.3241,93314.0,93305.0,0.0411124]
[1740969579137,0.160761,93306.0,93305.0,0.0411124]
[1740969579262,0.160761,93306.0,93305.0,0.0481124]
[1740969579469,0.16088122,93306.0,93305.0,0.0411124]
[1740969580218,0.00012022,93306.0,93305.0,0.0411124]
[1740969580374,0.16088122,93306.0,93305.0,0.0411124]
[1740969580782,0.48498122,93306.0,93305.0,0.0411124]
[1740969580980,0.48498122,93306.0,93305.0,0.0481124]
[1740969581189,0.48498122,93306.0,93305.0,0.014]
[1740969581394,0.32422022,93306.0,93287.0,0.01049751]
[1740969581598,0.160764,93304.0,93297.0,0.160775]
[1740969581825,0.69932922,93306.0,93305.0,0.007]
[1740969582424,0.160783,93294.0,93287.0,0.1714781]
[1740969582619,0.16078,93295.0,93288.0,0.160792]
[1740969582926,0.160766,93303.0,93296.0,0.160777]
[1740969583127,0.160766,93303.0,93287.0,0.0176851]
[1740969583128,0.16077,93301.0,93294.0,0.160782]
[1740969583342,0.160771,93300.0,93294.0,0.160782]
[1740969583533,0.160773,93299.0,93293.0,0.160783]
[1740969583845,0.160773,93299.0,93295.0,0.03410738]
[1740969584056,0.160773,93299.0,93294.0,0.03410688]
[1740969584216,0.00187583,93304.0,93294.0,0.03410688]
[1740969584422,0.00187583,93304.0,93293.0,0.214376]
[1740969584423,0.16077,93301.0,93287.0,0.0106851]
[1740969584620,0.00187585,93301.0,93297.0,0.160776]
[1740969584802,0.32422022,93306.0,93295.0,0.03410738]
[1740969584803,0.001,93299.0,93298.0,0.689272]
[1740969585006,0.001,93299.0,93298.0,0.160775]
[1740969585254,0.32422022,93306.0,93305.0,0.160763]
[1740969585453,0.00012022,93306.0,93305.0,0.159763]
[1740969586004,0.00012022,93306.0,93305.0,0.1938754]
[1740969586209,0.00012022,93306.0,93305.0,1.6938754]
[1740969587272,0.00012022,93306.0,93305.0,1.70380058]
[1740969587690,0.00012022,93306.0,93305.0,1.71080058]
[1740969587691,0.00112022,93306.0,93305.0,1.71080058]
[1740969587878,0.00212022,93306.0,93305.0,1.71780058]
[1740969589907,0.00212022,93306.0,93305.0,0.21780058]
[1740969590365,2.2e-07,93306.0,93305.0,2.1029737]
[1740969590591,2.2e-07,93306.0,93305.0,4.61920258]
[1740969590816,2.2e-07,93306.0,93305.0,2.19333964]
[1740969591414,2.2e-07,93306.0,93305.0,2.18633964]
[1740969591638,2.2e-07,93306.0,93305.0,2.17933964]
[1740969591848,0.00187504,93337.0,93329.0,0.160721]
[1740969592153,0.00187504,93337.0,93329.0,0.19484546]
[1740969592620,0.16071,93336.0,93329.0,0.19484546]
[1740969592853,0.00187506,93335.0,93329.0,0.03412446]
[1740969593252,0.21615906,93335.0,93324.0,0.214307]
[1740969593577,0.0491,93329.0,93305.0,0.11441716]
[1740969593778,0.160749,93314.0,93306.0,0.214348]
[1740969593932,0.00187539,93326.0,93308.0,0.3]
[1740969594125,0.214304,93325.0,93308.0,0.3]
[1740969594421,0.160747,93315.0,93310.0,0.3]
[1740969594618,0.160745,93316.0,93310.0,0.3]
[1740969594813,0.00187538,93324.0,93305.0,0.01126618]
[1740969594953,0.00187538,93324.0,93323.0,0.16073]
[1740969595153,0.00187529,93328.0,93324.0,0.16073]
[1740969595357,0.00187529,93328.0,93308.0,0.014]
[1740969595581,0.3241,93329.0,93328.0,0.160723]
[1740969595974,0.16074,93319.0,93312.0,0.16075]
[1740969596174,0.00187538,93318.0,93313.0,1.5]
[1740969596383,0.00187538,93328.0,93313.0,1.5]
[1740969596983,0.160734,93322.0,93316.0,0.160743]
[1740969597185,0.00187536,93328.0,93313.0,1.5]
[1740969597388,0.00187536,93328.0,93313.0,1.507]
[1740969597585,0.160731,93324.0,93317.0,0.16074]
[1740969597788,0.00187535,93323.0,93313.0,1.5]
[1740969598004,0.00187538,93328.0,93313.0,1.507]
[1740969598349,0.160736,93321.0,93315.0,0.160745]
[1740969598653,0.16261237,93320.0,93316.0,0.03411793]
[1740969598860,0.00187537,93320.0,93317.0,0.007]
[1740969599063,0.0018753,93328.0,93317.0,0.007]
[1740969599242,0.3241,93329.0,93318.0,0.21432]
[1740969599477,0.00187524,93328.0,93319.0,0.214318]
[1740969599678,0.3241,93329.0,93318.0,0.03411893]
[1740969599809,0.3241,93329.0,93320.0,0.03411994]
[1740969600008,0.00187524,93328.0,93327.0,0.160724]
[1740969600220,0.3241,93329.0,93328.0,0.160723]
[1740969600979,0.3241,93329.0,93328.0,0.19484696]
[1740969601135,0.0001704,93330.0,93329.0,0.160721]
[1740969601331,0.0001704,93330.0,93329.0,0.19484546]
[1740969602065,0.0001704,93330.0,93329.0,0.50662887]
[1740969602274,0.0001704,93330.0,93329.0,1.27998546]
[1740969602867,0.0001704,93330.0,93329.0,1.28698546]
[1740969603101,0.0001704,93330.0,93329.0,1.29781768]
[1740969603571,0.0001704,93330.0,93329.0,1.29081768]
[1740969603935,0.0001704,93330.0,93329.0,1.29781768]
[1740969604554,0.0001704,93330.0,93329.0,1.37241768]
[1740969604956,0.0001704,93330.0,93329.0,1.37941768]
[1740969605580,0.0001704,93330.0,93329.0,1.30578973]
[1740969605897,0.0001704,93330.0,93329.0,0.87072773]
[1740969606125,0.0001704,93330.0,93329.0,0.62067768]
[1740969606282,0.0001704,93330.0,93329.0,0.66647768]
[1740969608611,0.0001704,93330.0,93329.0,0.62795768]
[1740969609396,0.0001704,93330.0,93329.0,0.51967768]
[1740969609711,0.0001704,93330.0,93329.0,3.66170868]
[1740969609855,0.0001704,93330.0,93329.0,2.83208768]
[1740969610062,0.0001704,93330.0,93329.0,2.79030768]
[1740969610367,0.0001704,93330.0,93329.0,2.45595168]
[1740969610721,0.0001704,93330.0,93329.0,1.51545468]
[1740969611416,0.0001704,93330.0,93329.0,1.46392568]
[1740969611833,4e-07,93330.0,93329.0,1.6503627]
[1740969612155,4e-07,93339.0,93338.0,0.160706]
[1740969612327,0.0001701,93351.0,93349.0,0.460687]
[1740969612692,0.00042022,93350.0,93349.0,0.460687]
[1740969612821,0.00042022,93350.0,93349.0,0.4948215]
[1740969613017,0.00042022,93350.0,93349.0,4.4064995]
[1740969613222,0.04587566,93380.0,93379.0,0.160635]
[1740969613442,0.04599584,93380.0,93379.0,0.160635]
[1740969614079,0.04599584,93380.0,93379.0,0.19478455]
[1740969614284,0.00012018,93380.0,93379.0,0.20546381]
[1740969614580,1.8e-07,93380.0,93379.0,0.84060295]
[1740969614739,1.8e-07,93380.0,93379.0,0.51246381]
[1740969615084,1.8e-07,93380.0,93379.0,0.50546381]
[1740969615298,1.8e-07,93380.0,93379.0,0.20546381]
[1740969615427,1.8e-07,93380.0,93379.0,0.03414955]
[1740969615885,1.8e-07,93380.0,93379.0,0.17818351]
[1740969616152,1.8e-07,93380.0,93379.0,0.20178455]
[1740969616340,1.8e-07,93380.0,93379.0,0.20560312]
[1740969616684,1.8e-07,93380.0,93379.0,1.71260312]
[1740969616929,1.8e-07,93380.0,93379.0,1.71960312]
[1740969617115,1.8e-07,93380.0,93379.0,1.54114955]
[1740969617498,0.16063318,93380.0,93379.0,0.04814955]
[1740969617637,0.1614569,93380.0,93379.0,0.04814955]
[1740969617847,0.1614569,93380.0,93379.0,0.014]
[1740969618475,0.1614569,93380.0,93379.0,0.007]
[1740969618871,0.2088569,93380.0,93379.0,0.007]
[1740969619375,0.160651,93371.0,93362.0,0.214218]
[1740969619541,0.00082372,93370.0,93347.0,0.02132703]
[1740969619738,0.160661,93364.0,93363.0,0.03414153]
[1740969620103,0.3241,93370.0,93341.0,0.01081898]
[1740969620104,0.08252372,93369.0,93341.0,0.01081898]
[1740969620307,0.214208,93367.0,93336.0,0.0218703]
[1740969620608,0.160676,93356.0,93349.0,0.0341345]
[1740969620763,0.00082372,93355.0,93346.0,0.214255]
[1740969620963,0.160675,93356.0,93337.0,0.03412848]
[1740969621178,0.00082372,93355.0,93347.0,0.0341335]
[1740969621538,0.160663,93363.0,93362.0,0.007]
[1740969621745,0.48558672,93363.0,93362.0,0.007]
[1740969621898,0.48558672,93363.0,93350.0,0.007]
[1740969621899,0.160683,93351.0,93350.0,0.007]
[1740969622068,0.160689,93348.0,93339.0,0.160704]
[1740969622266,0.160689,93348.0,93337.0,0.007]
[1740969622267,0.16069,93348.0,93337.0,0.007]
[1740969622466,0.00082372,93355.0,93337.0,0.007]
[1740969622669,0.160706,93338.0,93337.0,0.007]
[1740969622881,0.32492372,93338.0,93312.0,0.09615098]
[1740969623076,0.160714,93334.0,93313.0,0.214332]
[1740969623321,0.00082372,93333.0,93314.0,0.3]
[1740969623523,0.484816,93332.0,93321.0,0.160733]
[1740969623730,0.00082372,93331.0,93320.0,0.160736]
[1740969623909,0.00082372,93331.0,93314.0,0.21433]
[1740969624125,0.00082372,93331.0,93320.0,0.160737]
[1740969624321,0.00082372,93331.0,93314.0,0.160746]
[1740969624507,0.160729,93325.0,93314.0,0.17163677]
[1740969624718,0.00082372,93324.0,93313.0,0.00040123]
[1740969624918,0.160735,93321.0,93320.0,0.007]
[1740969625123,0.00082372,93331.0,93314.0,0.007]
[1740969625408,0.214295,93329.0,93314.0,0.007]
[1740969625577,0.00082372,93328.0,93314.0,0.007]
[1740969625879,0.160742,93317.0,93314.0,0.007]
[1740969626079,0.32492372,93322.0,93314.0,1.507]
[1740969626282,0.160745,93315.0,93314.0,1.507]
[1740969626693,0.484845,93315.0,93314.0,0.007]
[1740969626850,0.160747,93314.0,93313.0,0.00740123]
[1740969627051,0.16157072,93314.0,93313.0,0.00740123]
[1740969627367,0.64027072,93314.0,93313.0,0.00740123]
[1740969627576,0.639447,93314.0,93313.0,0.00740123]
[1740969627757,0.639447,93314.0,93313.0,0.00040123]
[1740969628365,0.639447,93314.0,93313.0,0.00540123]
[1740969628758,0.639447,93314.0,93313.0,0.00740123]
[1740969629438,0.639447,93314.0,93313.0,0.00040123]
[1740969629594,0.210759,93307.0,93306.0,0.0003408]
[1740969629793,0.29502272,93307.0,93306.0,0.0004608]
[1740969630000,0.244199,93307.0,93306.0,0.0004608]
[1740969630326,0.16158272,93307.0,93306.0,0.0004608]
[1740969630722,0.24502272,93307.0,93306.0,0.0074608]
[1740969630922,0.24502272,93307.0,93306.0,0.0004608]
[1740969631374,0.24502272,93307.0,93306.0,0.0024608]
[1740969631525,0.24502272,93307.0,93306.0,0.0014608]
[1740969631726,0.24502272,93307.0,93306.0,0.0004608]
[1740969631925,0.24502272,93307.0,93306.0,0.0034608]
[1740969632283,0.24602272,93307.0,93306.0,0.0104608]
[1740969632689,0.24514272,93307.0,93306.0,0.0034608]
[1740969633095,0.16158272,93307.0,93306.0,0.0034608]
[1740969633288,0.24502272,93307.0,93306.0,0.0034608]
[1740969633496,0.24502272,93307.0,93306.0,0.0064608]
[1740969633703,0.24502272,93307.0,93306.0,0.0034608]
[1740969633906,0.56912272,93307.0,93306.0,0.0034608]
[1740969634063,0.569299,93307.0,93306.0,0.0094608]
[1740969634944,0.569299,93307.0,93306.0,0.0064608]
[1740969635648,0.570299,93307.0,93306.0,0.0134608]
[1740969639413,0.160799,93284.0,93283.0,0.0003408]
[1740969639613,0.484899,93284.0,93283.0,0.00046102]
[1740969640502,0.485899,93284.0,93283.0,0.00746102]
[1740969640722,0.485899,93284.0,93283.0,0.00046102]
[1740969641169,0.486899,93284.0,93283.0,0.00746102]
[1740969641368,0.3241,93284.0,93283.0,0.00046102]
[1740969641579,0.484899,93284.0,93283.0,0.00046102]
[1740969642005,0.485899,93284.0,93283.0,0.00346102]
[1740969642778,0.485899,93284.0,93283.0,0.00646102]
[1740969643314,0.484899,93284.0,93283.0,0.00046102]
[1740969643459,0.485899,93284.0,93283.0,0.00646102]
[1740969643661,0.485899,93284.0,93283.0,0.00046102]
[1740969643867,0.486899,93284.0,93283.0,0.00646102]
[1740969644070,0.487899,93284.0,93283.0,0.01046102]
[1740969644327,0.485899,93284.0,93283.0,0.00446102]
[1740969644526,0.485899,93284.0,93283.0,0.00646102]
[1740969644914,0.531399,93284.0,93283.0,0.00646102]
[1740969645504,0.55417599,93284.0,93283.0,0.00946102]
[1740969645843,0.55317599,93284.0,93283.0,0.00646102]
[1740969645991,0.55217599,93284.0,93283.0,0.00046102]
[1740969646393,0.55217599,93284.0,93283.0,0.00646102]
[1740969646394,0.531399,93284.0,93283.0,0.00646102]
[1740969646592,0.531399,93284.0,93283.0,0.00046102]
[1740969646593,0.3251,93284.0,93283.0,0.00046102]
[1740969646829,0.485899,93284.0,93283.0,0.00346102]
[1740969647235,0.484899,93284.0,93283.0,0.00046102]
[1740969647435,0.484899,93284.0,93283.0,0.00246102]
[1740969647749,0.3241,93284.0,93283.0,0.00046102]
[1740969647952,0.3241,93284.0,93283.0,0.16326202]
[1740969648188,0.3241,93295.0,93284.0,0.3]
[1740969648388,0.3241,93301.0,93290.0,0.3]
[1740969648601,0.00082372,93300.0,93283.0,0.039187]
[1740969648844,0.001,93284.0,93283.0,0.556587]
[1740969649096,0.001,93284.0,93283.0,0.51786102]
[1740969649397,0.00082372,93300.0,93292.0,0.3]
[1740969649646,0.160783,93293.0,93292.0,0.3]
[1740969649911,0.161799,93284.0,93283.0,0.00046102]
[1740969650164,0.16162272,93284.0,93283.0,0.00046102]
[1740969650393,0.16262272,93284.0,93283.0,0.00046102]
[1740969650622,0.16162272,93284.0,93283.0,0.00046102]
[1740969651441,0.16262272,93284.0,93283.0,0.00046102]
[1740969651728,0.48772272,93284.0,93283.0,0.00046102]
[1740969651929,0.486899,93284.0,93283.0,0.00046102]
[1740969652426,0.3261,93284.0,93283.0,0.00046102]
[1740969654276,0.3261,93284.0,93283.0,0.16126202]
[1740969654475,0.3261,93284.0,93283.0,0.01403829]
[1740969654673,0.3261,93284.0,93283.0,0.17483929]
[1740969654875,0.3261,93284.0,93283.0,0.47483929]
[1740969656171,0.3261,93284.0,93283.0,1.97483929]
[1740969656580,0.3261,93284.0,93283.0,0.31403829]
[1740969656804,0.486899,93284.0,93283.0,0.31403829]
[1740969657205,0.3261,93284.0,93283.0,0.31403829]
[1740969657370,0.3261,93284.0,93283.0,0.30046102]
[1740969657823,0.3261,93284.0,93283.0,0.31403829]
[1740969658797,0.486899,93284.0,93283.0,0.31403829]
[1740969659151,0.3261,93284.0,93283.0,0.31403829]
[1740969659512,0.3261,93284.0,93283.0,0.47483929]
[1740969660152,0.486899,93284.0,93283.0,0.31403829]
[1740969660312,0.486899,93284.0,93283.0,0.01403829]
[1740969661034,0.486899,93284.0,93283.0,0.00046102]
[1740969662168,0.3261,93284.0,93283.0,0.00046102]
[1740969662372,0.3261,93284.0,93283.0,0.16126202]
[1740969662924,0.3261,93284.0,93283.0,0.199988]
[1740969664088,0.3261,93284.0,93283.0,0.039187]
[1740969664292,0.3261,93284.0,93283.0,0.16126202]
[1740969664462,0.3261,93284.0,93283.0,0.199988]
[1740969664976,0.3261,93284.0,93283.0,0.499988]
[1740969665878,0.3261,93284.0,93283.0,0.339187]
[1740969666220,0.3261,93284.0,93283.0,1.839187]
[1740969666965,0.3261,93284.0,93283.0,1.999988]
[1740969667371,0.002,93284.0,93283.0,1.999988]
[1740969668394,0.002,93284.0,93283.0,2.69443]
[1740969669037,0.24575774,93320.0,93284.0,0.3]
[1740969669226,0.24464335,93320.0,93319.0,0.160738]
[1740969669414,0.24464335,93320.0,93316.0,0.160744]
[1740969669603,0.24464335,93320.0,93319.0,0.159738]
[1740969669806,0.24464335,93320.0,93319.0,0.158738]
[1740969670409,0.24664335,93320.0,93319.0,0.16785822]
[1740969670615,0.24664335,93320.0,93319.0,0.16285822]
[1740969670836,0.002,93320.0,93319.0,1.41434096]
[1740969671027,0.003,93320.0,93319.0,2.12859596]
[1740969671226,0.002,93320.0,93319.0,3.06234896]
[1740969671436,0.002,93320.0,93319.0,1.50687996]
[1740969671993,0.001,93320.0,93319.0,1.50287996]
[1740969672161,0.001,93320.0,93319.0,1.50987996]
[1740969672342,0.001,93320.0,93319.0,0.95009596]
[1740969672919,0.24464335,93334.0,93320.0,0.3]
[1740969673123,0.24464335,93334.0,93329.0,0.3]
[1740969673343,0.24464335,93334.0,93329.0,0.460721]
[1740969673566,0.24464335,93334.0,93330.0,0.01362932]